[Event "IIFL Wealth 4th Mumbai GM"]
[Site "Mumbai"]
[Date "2019.01.05"]
[Round "7"]
[White "Nikhil Magizhnan"]
[Black "Konguvel, Ponnuswamy"]
[Result "0-1"]
[ECO "B30"]
[WhiteElo "2148"]
[BlackElo "2282"]
[Annotator "NA"]
[PlyCount "96"]
[EventDate "2018.12.30"]
[EventType "swiss"]
[EventCountry "IND"]
[SourceTitle "playchess.com"]
[Source "ChessBase"]
[SourceQuality "1"]
[TimeControl "40/5400+30:1800+30"]

1. e4 {[%emt 0:00:00]} c5 {[%emt 0:00:00]} 2. Nf3 {[%emt 0:00:00]} Nc6 {[%emt 0:00:00]} 3. c3 {[%emt 0:02:16]} d5 {[%emt 0:00:54]} 4. exd5 {[%emt 0:00:43]} Qxd5 {[%emt 0:00:05]} 5. d4 {[%emt 0:00:43]} Bf5 {[%emt 0:00:40]} 6. Be3 {[%emt 0:02:55]} Nf6 {[%emt 0:01:49]} 7. Na3 {[%emt 0:00:28]} cxd4 {[%emt 0:03:00]} 8. Nb5 {[%emt 0:00:53]} O-O-O {[%emt 0:14:27]} 9. Nfxd4 {[%emt 0:16:28]} Nxd4 {[%emt 0:02:18]} 10. cxd4 {[%emt 0:05:54]} e5 {[%emt 0:02:47]} 11. Qc1+ {[%emt 0:01:02]} Kd7 {[%emt 0:12:23]} 12. Qc7+ {[%emt 0:27:27]} Ke8 {[%emt 0:00:09]} 13. Bc4 {[%emt 0:18:04]} Bb4+ {[%emt 0:04:52]} 14. Nc3 {[%emt 0:06:27]} Ba5 {[%emt 0:14:42]} 15. Qxe5+ {[%emt 0:02:10]} Qxe5 {[%emt 0:00:05]} 16. dxe5 {[%emt 0:00:02]} Ne4 {[%emt 0:10:52]} 17. O-O {[%emt 0:06:06]} Nxc3 {[%emt 0:11:24]} 18. bxc3 {[%emt 0:00:03]} Rc8 {[%emt 0:05:27]} 19. Bb5+ {[%emt 0:00:54]} Ke7 {[%emt 0:00:46]} 20. Bg5+ {[%emt 0:06:12]} f6 {[%emt 0:02:03]} 21. exf6+ {[%emt 0:00:12]} gxf6 {[%emt 0:00:04]} 22. Be3 {[%emt 0:00:46]} Bxc3 {[%emt 0:01:10]} 23. Rad1 {[%emt 0:00:51]} a6 {[%emt 0:00:49]} 24. Bd3 {[%emt 0:00:29]} Bxd3 {[%emt 0:01:02]} 25. Rxd3 {[%emt 0:00:01]} Rhd8 {[%emt 0:00:10]} 26. Rfd1 {[%emt 0:00:10]} Rxd3 {[%emt 0:00:48]} 27. Rxd3 {[%emt 0:00:01]} b5 {[%emt 0:00:10]} 28. Kf1 {[%emt 0:00:36]} a5 {[%emt 0:04:03]} 29. Rd5 {[%emt 0:00:46]} Rb8 {[%emt 0:00:12]} 30. Ke2 {[%emt 0:00:13]} Ke6 {[%emt 0:01:30]} 31. Rh5 {[%emt 0:00:02]} Rb7 {[%emt 0:00:22]} 32. g4 {[%emt 0:01:42]} a4 {[%emt 0:00:38]} 33. Kd3 {[%emt 0:01:00]} b4 {[%emt 0:00:37]} 34. Ra5 {[%emt 0:00:32]} b3 {[%emt 0:02:12]} 35. Ra6+ {[%emt 0:00:04]} Kd5 {[%emt 0:00:48]} 36. axb3 {[%emt 0:00:06]} axb3 {[%emt 0:00:04]} 37. Rb6 {[%emt 0:00:26]} Rxb6 {[%emt 0:00:34]} 38. Bxb6 {[%emt 0:00:01]} Be5 {[%emt 0:02:19]} 39. f3 {[%emt 0:00:36]} Kc6 {[%emt 0:02:04]} 40. Be3 {[%emt 0:00:00]} Kb5 {[%emt 0:00:00]} 41. f4 {[%emt 0:04:48]} Ba1 {[%emt 0:01:00]} 42. Kd2 {[%emt 0:12:07]} Kc4 {[%emt 0:04:45]} 43. Kc1 {[%emt 0:01:23]} Kd3 {[%emt 0:00:07]} 44. Bc5 {[%emt 0:01:32]} Ke4 {[%emt 0:02:33]} 45. f5 {[%emt 0:01:05]} Kf4 {[%emt 0:01:37]} 46. h3 {[%emt 0:02:08]} Kg3 {[%emt 0:04:28]} 47. g5 {[%emt 0:03:58]} fxg5 {[%emt 0:00:11]} 48. Ba3 {[%emt 0:00:24]} Kf4 {[%emt 0:00:34]} 0-1

[Event "IIFL Wealth 4th Mumbai GM"]
[Site "Mumbai"]
[Date "2019.01.05"]
[Round "7"]
[White "Vantika Agrawal"]
[Black "Srihari L R"]
[Result "1/2-1/2"]
[ECO "D09"]
[WhiteElo "2143"]
[BlackElo "2316"]
[Annotator "NA"]
[PlyCount "78"]
[EventDate "2018.12.30"]
[EventType "swiss"]
[EventCountry "IND"]
[SourceTitle "playchess.com"]
[Source "ChessBase"]
[SourceQuality "1"]
[TimeControl "40/5400+30:1800+30"]

1. d4 {[%emt 0:00:00]} d5 {[%emt 0:00:00]} 2. c4 {[%emt 0:00:27]} e5 {[%emt 0:02:09]} 3. dxe5 {[%emt 0:06:19]} d4 {[%emt 0:00:38]} 4. Nf3 {[%emt 0:02:27]} Nc6 {[%emt 0:01:14]} 5. g3 {[%emt 0:21:00]} Nge7 {[%emt 0:04:06]} 6. Bg2 {[%emt 0:01:42]} Ng6 {[%emt 0:00:18]} 7. O-O {[%emt 0:02:25]} Bg4 {[%emt 0:17:12]} 8. Qb3 {[%emt 0:33:39]} Rb8 {[%emt 0:11:52]} 9. Rd1 {[%emt 0:05:30]} Be7 {[%emt 0:03:21]} 10. Be3 {[%emt 0:12:37]} Bxf3 {[%emt 0:05:04]} 11. exf3 {[%emt 0:00:37]} Ngxe5 {[%emt 0:01:47]} 12. f4 {[%emt 0:01:33]} Ng4 {[%emt 0:02:44]} 13. Bd2 {[%emt 0:04:49]} O-O {[%emt 0:02:02]} 14. Na3 {[%emt 0:00:56]} Bc5 {[%emt 0:01:27]} 15. Qf3 {[%emt 0:00:54]} Nf6 {[%emt 0:03:28]} 16. Be1 {[%emt 0:00:41]} Qd7 {[%emt 0:01:51]} 17. Nc2 {[%emt 0:00:25]} a5 {[%emt 0:00:04]} 18. a3 {[%emt 0:01:26]} a4 {[%emt 0:01:32]} 19. Nb4 {[%emt 0:00:25]} Na5 {[%emt 0:01:05]} 20. Nd3 {[%emt 0:00:46]} Nb3 {[%emt 0:00:05]} 21. Nxc5 {[%emt 0:00:40]} Nxc5 {[%emt 0:00:04]} 22. Bb4 {[%emt 0:00:18]} Qd6 {[%emt 0:01:56]} 23. Rd2 {[%emt 0:00:36]} Rfd8 {[%emt 0:00:12]} 24. Rad1 {[%emt 0:00:27]} Nfe4 {[%emt 0:01:20]} 25. Qxe4 {[%emt 0:00:48]} Nxe4 {[%emt 0:03:33]} 26. Bxd6 {[%emt 0:00:05]} Nxd2 {[%emt 0:04:18]} 27. Bxc7 {[%emt 0:00:06]} Nb3 {[%emt 0:03:46]} 28. Bxd8 {[%emt 0:00:35]} Rxd8 {[%emt 0:00:01]} 29. Bxb7 {[%emt 0:00:24]} Nc5 {[%emt 0:04:33]} 30. Bc6 {[%emt 0:01:14]} d3 {[%emt 0:01:03]} 31. Kg2 {[%emt 0:00:28]} Rd6 {[%emt 0:01:43]} 32. Bd5 {[%emt 0:00:29]} Rb6 {[%emt 0:00:41]} 33. Rd2 {[%emt 0:00:32]} Rb8 {[%emt 0:00:21]} 34. Bc6 {[%emt 0:01:01]} Rb6 {[%emt 0:01:44]} 35. Bd5 {[%emt 0:00:11]} Rb8 {[%emt 0:00:03]} 36. Bc6 {[%emt 0:00:09]} Rb6 {[%emt 0:00:04]} 37. Bd5 {[%emt 0:00:06]} Rb8 {[%emt 0:00:09]} 38. Bc6 {[%emt 0:00:04]} Rb6 {[%emt 0:00:03]} 39. Bd5 {[%emt 0:00:05]} Rb8 {[%emt 0:00:03]} 1/2-1/2

[Event "IIFL Wealth 4th Mumbai GM"]
[Site "Mumbai"]
[Date "2019.01.05"]
[Round "7"]
[White "Rakshitta Ravi"]
[Black "Mohota, Nisha"]
[Result "1/2-1/2"]
[ECO "A06"]
[WhiteElo "2141"]
[BlackElo "2264"]
[Annotator "NA"]
[PlyCount "150"]
[EventDate "2018.12.30"]
[EventType "swiss"]
[EventCountry "IND"]
[SourceTitle "playchess.com"]
[Source "ChessBase"]
[SourceQuality "1"]
[TimeControl "40/5400+30:1800+30"]

1. Nf3 d5 2. g3 c6 3. Bg2 Bf5 4. O-O Nf6 5. d3 h6 6. Qe1 e6 7. Nc3 Be7 8. Nd2 Bh7 9. e4 O-O 10. h3 a5 11. f4 Na6 12. g4 Nb4 13. Qd1 dxe4 14. dxe4 Nd7 15. a3 Na6 16. Qe2 Nac5 17. Kh1 f5 18. gxf5 exf5 19. e5 Kh8 20. Nb3 Nxb3 21. cxb3 Nc5 22. Be3 Bg8 23. b4 axb4 24. axb4 Rxa1 25. Rd1 Rb1 26. Rxb1 Ne6 27. Rd1 Qe8 28. b5 g5 29. fxg5 hxg5 30. bxc6 bxc6 31. Qf3 Qf7 32. Rd7 Rc8 33. Na4 f4 34. Bf2 c5 35. Qb7 Re8 36. Nxc5 f3 37. Bxf3 Nf8 38. e6 Nxe6 39. Qe4 Nxc5 40. Bd4+ Bf6 41. Qxe8 Nxd7 42. Qxf7 Bxf7 43. Bxf6+ Nxf6 44. b4 Kg7 45. Kh2 Be8 46. Kg3 Bd7 47. b5 Bxb5 48. h4 Kg6 49. hxg5 Kxg5 50. Kh2 Kf4 51. Bb7 Ng4+ 52. Kh1 Kg3 53. Kg1 Nf2 54. Ba8 Ba6 55. Bc6 Nh3+ 56. Kh1 Kf2 57. Ba8 Nf4 58. Bc6 Ng6 59. Ba8 Ne5 60. Kh2 Bc8 61. Kh1 Ng4 62. Bc6 Ba6 63. Ba8 Bb5 64. Bb7 Bf1 65. Ba8 Ne5 66. Kh2 Ng4+ 67. Kh1 Kg3 68. Kg1 Ba6 69. Kh1 Be2 70. Kg1 Nf2 71. Bb7 Bb5 72. Ba8 Ba6 73. Bc6 Bc8 74. Ba8 Ba6 75. Bc6 Nh3+ 1/2-1/2

[Event "IIFL Wealth 4th Mumbai GM"]
[Site "Mumbai"]
[Date "2019.01.05"]
[Round "7"]
[White "Saksham Rautela"]
[Black "Prraneeth Vuppala"]
[Result "1/2-1/2"]
[ECO "B53"]
[WhiteElo "2123"]
[BlackElo "2228"]
[Annotator "NA"]
[PlyCount "70"]
[EventDate "2018.12.30"]
[EventType "swiss"]
[EventCountry "IND"]
[SourceTitle "playchess.com"]
[Source "ChessBase"]
[SourceQuality "1"]
[TimeControl "40/5400+30:1800+30"]

1. e4 c5 2. Nf3 d6 3. d4 cxd4 4. Qxd4 Nc6 5. Qe3 g6 6. Be2 Bg7 7. O-O Nf6 8. h3 O-O 9. Nc3 a6 10. Rd1 Qc7 11. Na4 Nb4 12. Ne1 b5 13. Nb6 Rb8 14. Nxc8 Rfxc8 15. c3 Nc6 16. a4 Na5 17. axb5 axb5 18. Nc2 Nc4 19. Bxc4 Qxc4 20. Ra7 e5 21. Rxd6 Bf8 22. Rda6 Bc5 23. Qf3 Bxa7 24. Qxf6 Bc5 25. Bh6 Bf8 26. Ne3 Qxe4 27. Ng4 Ra8 28. Bxf8 Kxf8 29. Qd6+ Kg7 30. Qf6+ Kf8 31. Qd6+ Kg7 32. Qf6+ Kf8 33. Nxe5 Qd5 34. Rd6 Qe4 35. Ra6 Qb7 1/2-1/2

[Event "IIFL Wealth 4th Mumbai GM"]
[Site "Mumbai"]
[Date "2019.01.05"]
[Round "7"]
[White "Tarun Kanyamarala"]
[Black "Kurbonboeva, Sarvinoz"]
[Result "0-1"]
[ECO "E84"]
[WhiteElo "2120"]
[BlackElo "2214"]
[Annotator "NA"]
[PlyCount "120"]
[EventDate "2018.12.30"]
[EventType "swiss"]
[EventCountry "IND"]
[SourceTitle "playchess.com"]
[Source "ChessBase"]
[SourceQuality "1"]
[TimeControl "40/5400+30:1800+30"]

1. d4 {[%emt 0:00:00]} Nf6 {[%emt 0:00:00]} 2. c4 {[%emt 0:00:00]} g6 {[%emt 0:00:00]} 3. f3 {[%emt 0:00:27]} Bg7 {[%emt 0:00:03]} 4. e4 {[%emt 0:00:23]} d6 {[%emt 0:00:05]} 5. Nc3 {[%emt 0:00:07]} O-O {[%emt 0:00:23]} 6. Be3 {[%emt 0:00:33]} Nc6 {[%emt 0:00:16]} 7. Nge2 {[%emt 0:01:45]} a6 {[%emt 0:00:15]} 8. Qd2 {[%emt 0:00:14]} Rb8 {[%emt 0:00:16]} 9. Nc1 {[%emt 0:01:41]} e5 {[%emt 0:04:00]} 10. d5 {[%emt 0:00:07]} Ne7 {[%emt 0:01:56]} 11. Bd3 {[%emt 0:18:50]} c6 {[%emt 0:01:14]} 12. N1e2 {[%emt 0:08:23]} cxd5 {[%emt 0:05:38]} 13. cxd5 {[%emt 0:02:28]} b5 {[%emt 0:00:30]} 14. Bh6 {[%emt 0:06:13]} Nd7 {[%emt 0:06:45]} 15. g4 {[%emt 0:15:01]} b4 {[%emt 0:19:45]} 16. Na4 {[%emt 0:10:13]} Nb6 {[%emt 0:12:08]} 17. Nxb6 {[%emt 0:04:09]} Qxb6 {[%emt 0:01:03]} 18. h4 {[%emt 0:05:07]} Bxh6 {[%emt 0:04:42]} 19. Qxh6 {[%emt 0:02:14]} f6 {[%emt 0:00:06]} 20. Kd2 {[%emt 0:02:46]} Bd7 {[%emt 0:04:34]} 21. Qe3 {[%emt 0:04:35]} Qb7 {[%emt 0:03:36]} 22. Rag1 {[%emt 0:04:22]} Rbc8 {[%emt 0:07:54]} 23. f4 {[%emt 0:03:48]} Bb5 {[%emt 0:00:11]} 24. Rc1 {[%emt 0:03:55]} Rxc1 {[%emt 0:13:44]} 25. Rxc1 {[%emt 0:00:08]} Bxd3 {[%emt 0:00:40]} 26. Qxd3 {[%emt 0:00:26]} Rc8 {[%emt 0:00:04]} 27. Rc4 {[%emt 0:01:29]} Kf7 {[%emt 0:00:34]} 28. g5 {[%emt 0:02:08]} Qb6 {[%emt 0:04:20]} 29. gxf6 {[%emt 0:00:56]} Rxc4 {[%emt 0:00:38]} 30. Qxc4 {[%emt 0:01:18]} Kxf6 {[%emt 0:00:01]} 31. Qd3 {[%emt 0:00:53]} exf4 {[%emt 0:01:30]} 32. Qh3 {[%emt 0:00:19]} Kg7 {[%emt 0:02:55]} 33. Nxf4 {[%emt 0:00:36]} Qd4+ {[%emt 0:00:13]} 34. Qd3 {[%emt 0:00:44]} Qxb2+ {[%emt 0:04:38]} 35. Kd1 {[%emt 0:00:12]} Qa1+ {[%emt 0:00:20]} 36. Ke2 {[%emt 0:00:08]} Qxa2+ {[%emt 0:00:09]} 37. Ke3 {[%emt 0:00:44]} Qa3 {[%emt 0:00:50]} 38. Kd4 {[%emt 0:00:16]} Qxd3+ {[%emt 0:00:49]} 39. Nxd3 {[%emt 0:00:04]} a5 {[%emt 0:01:49]} 40. Kc4 {[%emt 0:00:00]} Ng8 {[%emt 0:00:00]} 41. e5 {[%emt 0:03:24]} dxe5 {[%emt 0:05:37]} 42. Nxe5 {[%emt 0:08:50]} Nf6 {[%emt 0:00:35]} 43. d6 {[%emt 0:01:54]} Kf8 {[%emt 0:00:25]} 44. Nc6 {[%emt 0:01:37]} Ke8 {[%emt 0:00:20]} 45. Nxa5 {[%emt 0:00:59]} Kd7 {[%emt 0:00:28]} 46. Kc5 {[%emt 0:03:41]} Ne4+ {[%emt 0:00:46]} 47. Kxb4 {[%emt 0:00:05]} Kxd6 {[%emt 0:00:52]} 48. Nb7+ {[%emt 0:01:21]} Ke5 {[%emt 0:01:55]} 49. Nd8 {[%emt 0:00:21]} Kf5 {[%emt 0:01:47]} 50. Kc4 {[%emt 0:00:26]} Nd2+ {[%emt 0:06:49]} 51. Kd5 {[%emt 0:00:40]} Kg4 {[%emt 0:03:14]} 52. Ne6 {[%emt 0:00:59]} Kxh4 {[%emt 0:00:27]} 53. Ke5 {[%emt 0:03:48]} g5 {[%emt 0:00:52]} 54. Kf5 {[%emt 0:00:19]} g4 {[%emt 0:01:57]} 55. Kf4 {[%emt 0:00:19]} g3 {[%emt 0:04:39]} 56. Ke3 {[%emt 0:00:28]} Kg4 {[%emt 0:00:23]} 57. Nd4 {[%emt 0:01:04]} Nc4+ {[%emt 0:01:17]} 58. Ke2 {[%emt 0:00:07]} Ne5 {[%emt 0:00:15]} 59. Kf1 {[%emt 0:00:18]} Nf3 {[%emt 0:00:35]} 60. Ne2 {[%emt 0:00:39]} Kh3 {[%emt 0:01:51]} 0-1

[Event "IIFL Wealth 4th Mumbai GM"]
[Site "Mumbai"]
[Date "2019.01.05"]
[Round "7"]
[White "Prajesh R"]
[Black "Safranska, Anda"]
[Result "1/2-1/2"]
[ECO "B07"]
[WhiteElo "2102"]
[BlackElo "2189"]
[Annotator "NA"]
[PlyCount "109"]
[EventDate "2018.12.30"]
[EventType "swiss"]
[EventCountry "IND"]
[SourceTitle "playchess.com"]
[Source "ChessBase"]
[SourceQuality "1"]
[TimeControl "40/5400+30:1800+30"]

1. d4 {[%emt 0:00:00]} d6 {[%emt 0:00:00]} 2. e4 {[%emt 0:00:00]} Nf6 {[%emt 0:00:00]} 3. Nc3 {[%emt 0:00:04]} g6 {[%emt 0:00:00]} 4. Bg5 {[%emt 0:01:13]} Bg7 {[%emt 0:00:13]} 5. Qd2 {[%emt 0:01:03]} h6 {[%emt 0:00:24]} 6. Bf4 {[%emt 0:03:33]} a6 {[%emt 0:03:42]} 7. a4 {[%emt 0:03:12]} Nc6 {[%emt 0:01:41]} 8. d5 {[%emt 0:00:47]} Nb8 {[%emt 0:00:30]} 9. Nf3 {[%emt 0:05:34]} Nbd7 {[%emt 0:05:10]} 10. Nd4 {[%emt 0:03:19]} Nc5 {[%emt 0:00:49]} 11. f3 {[%emt 0:00:59]} e5 {[%emt 0:00:32]} 12. dxe6 {[%emt 0:00:05]} Nxe6 {[%emt 0:00:07]} 13. Nxe6 {[%emt 0:00:19]} Bxe6 {[%emt 0:00:06]} 14. Be2 {[%emt 0:27:21]} Nd7 {[%emt 0:12:31]} 15. a5 {[%emt 0:03:01]} Ne5 {[%emt 0:04:43]} 16. Nd5 {[%emt 0:00:41]} Bxd5 {[%emt 0:09:34]} 17. Qxd5 {[%emt 0:00:42]} Rb8 {[%emt 0:01:14]} 18. O-O {[%emt 0:10:41]} O-O {[%emt 0:00:15]} 19. Rfd1 {[%emt 0:00:33]} g5 {[%emt 0:08:53]} 20. Be3 {[%emt 0:01:39]} Ng6 {[%emt 0:00:30]} 21. Qb3 {[%emt 0:10:46]} Be5 {[%emt 0:22:04]} 22. g3 {[%emt 0:07:53]} Qc8 {[%emt 0:06:23]} 23. Ra4 {[%emt 0:01:49]} c5 {[%emt 0:00:41]} 24. Kg2 {[%emt 0:04:07]} Qc6 {[%emt 0:02:02]} 25. Qa3 Bxb2 {[%emt 0:00:26]} 26. Qa2 {[%emt 0:07:59]} Be5 {[%emt 0:00:21]} 27. Bc4 {[%emt 0:04:18]} Kg7 {[%emt 0:02:26]} 28. Bd5 {[%emt 0:00:31]} Qd7 {[%emt 0:01:33]} 29. Ra3 {[%emt 0:00:46]} Qe7 {[%emt 0:01:53]} 30. Rb1 {[%emt 0:01:13]} Rfc8 {[%emt 0:05:17]} 31. Rab3 {[%emt 0:00:24]} Rc7 {[%emt 0:00:08]} 32. Rb6 {[%emt 0:00:11]} Qf6 {[%emt 0:06:14]} 33. Rxb7 {[%emt 0:00:45]} Rbxb7 {[%emt 0:01:19]} 34. Rxb7 {[%emt 0:00:02]} Rxb7 {[%emt 0:00:07]} 35. Bxb7 {[%emt 0:00:02]} Bd4 {[%emt 0:01:12]} 36. Bd2 {[%emt 0:01:55]} Ne5 {[%emt 0:02:51]} 37. Qa3 {[%emt 0:00:05]} c4 {[%emt 0:00:11]} 38. f4 {[%emt 0:00:27]} gxf4 {[%emt 0:00:52]} 39. Bxf4 {[%emt 0:00:01]} Qg6 {[%emt 0:01:39]} 40. c3 {[%emt 0:00:00]} Qg4 {[%emt 0:00:00]} 41. Bxe5+ {[%emt 0:07:54]} Bxe5 {[%emt 0:02:36]} 42. Qa2 {[%emt 0:05:50]} h5 {[%emt 0:10:04]} 43. Qxc4 {[%emt 0:00:30]} h4 {[%emt 0:00:09]} 44. Qd3 {[%emt 0:10:17]} hxg3 {[%emt 0:03:31]} 45. hxg3 {[%emt 0:00:44]} Qd7 {[%emt 0:00:11]} 46. Qxa6 {[%emt 0:04:37]} Bxc3 {[%emt 0:00:26]} 47. Qb6 {[%emt 0:02:58]} Bxa5 {[%emt 0:01:44]} 48. Qd4+ {[%emt 0:00:59]} Kg8 {[%emt 0:01:07]} 49. Bd5 {[%emt 0:00:18]} Qc7 {[%emt 0:01:25]} 50. Qf6 {[%emt 0:00:15]} Qc2+ {[%emt 0:02:42]} 51. Kh3 Qc8+ {[%emt 0:00:06]} 52. g4 {[%emt 0:00:57]} Qc3+ {[%emt 0:00:11]} 53. Qxc3 {[%emt 0:00:06]} Bxc3 {[%emt 0:00:04]} 54. g5 {[%emt 0:00:03]} Kg7 {[%emt 0:00:08]} 55. Kg4 {[%emt 0:00:03]} 1/2-1/2

[Event "IIFL Wealth 4th Mumbai GM"]
[Site "Mumbai"]
[Date "2019.01.05"]
[Round "7"]
[White "Thipsay, Bagyashree Sathe"]
[Black "Sammed Jaykumar, Shete"]
[Result "0-1"]
[ECO "B58"]
[WhiteElo "2028"]
[BlackElo "2378"]
[Annotator "NA"]
[PlyCount "64"]
[EventDate "2018.12.30"]
[EventType "swiss"]
[EventCountry "IND"]
[SourceTitle "playchess.com"]
[Source "ChessBase"]
[SourceQuality "1"]
[TimeControl "40/5400+30:1800+30"]

1. e4 {[%emt 0:00:00]} c5 {[%emt 0:00:00]} 2. Nf3 {[%emt 0:00:00]} Nc6 {[%emt 0:00:00]} 3. Nc3 {[%emt 0:00:00]} d6 {[%emt 0:00:00]} 4. d4 {[%emt 0:00:02]} cxd4 {[%emt 0:00:01]} 5. Nxd4 {[%emt 0:00:04]} Nf6 {[%emt 0:00:06]} 6. Be2 {[%emt 0:00:15]} e5 {[%emt 0:00:08]} 7. Nf3 {[%emt 0:00:04]} h6 {[%emt 0:00:03]} 8. O-O {[%emt 0:00:09]} Be7 {[%emt 0:00:02]} 9. Re1 {[%emt 0:00:08]} O-O {[%emt 0:00:05]} 10. Bf1 {[%emt 0:00:05]} Be6 {[%emt 0:00:05]} 11. Nd5 {[%emt 0:00:17]} Bxd5 {[%emt 0:03:04]} 12. exd5 {[%emt 0:00:07]} Nb8 {[%emt 0:03:28]} 13. c4 Nbd7 {[%emt 0:01:43]} 14. b3 {[%emt 0:07:33]} Nh7 {[%emt 0:04:03]} 15. Bb2 {[%emt 0:07:05]} f5 {[%emt 0:01:19]} 16. b4 {[%emt 0:01:34]} b6 {[%emt 0:03:21]} 17. Rc1 {[%emt 0:05:45]} Ng5 {[%emt 0:14:53]} 18. Nd2 {[%emt 0:08:33]} a5 {[%emt 0:02:09]} 19. a3 {[%emt 0:01:19]} Bf6 {[%emt 0:00:12]} 20. Nb3 {[%emt 0:16:44]} a4 {[%emt 0:00:52]} 21. Nd2 {[%emt 0:00:45]} e4 {[%emt 0:00:20]} 22. Qc2 {[%emt 0:05:58]} Ne5 {[%emt 0:03:00]} 23. Bxe5 {[%emt 0:05:36]} Bxe5 {[%emt 0:00:20]} 24. c5 {[%emt 0:01:00]} bxc5 {[%emt 0:15:19]} 25. bxc5 {[%emt 0:00:48]} dxc5 {[%emt 0:00:12]} 26. Qxc5 {[%emt 0:04:47]} Bf4 {[%emt 0:02:09]} 27. Rcd1 {[%emt 0:02:58]} Bxd2 {[%emt 0:00:51]} 28. Re2 {[%emt 0:03:11]} Rc8 {[%emt 0:04:49]} 29. Qd4 {[%emt 0:01:30]} Bc3 {[%emt 0:00:12]} 30. Qxa4 {[%emt 0:00:08]} Be5 {[%emt 0:00:07]} 31. d6 {[%emt 0:03:06]} Kh7 {[%emt 0:00:17]} 32. Red2 {[%emt 0:00:48]} Nf3+ {Ra1} 0-1

[Event "IIFL Wealth 4th Mumbai GM"]
[Site "Mumbai"]
[Date "2019.01.05"]
[Round "7"]
[White "Thapa, Krishna"]
[Black "Mrudul Dehankar"]
[Result "0-1"]
[ECO "E21"]
[WhiteElo "2024"]
[BlackElo "2199"]
[Annotator "NA"]
[PlyCount "104"]
[EventDate "2018.12.30"]
[EventType "swiss"]
[EventCountry "IND"]
[SourceTitle "playchess.com"]
[Source "ChessBase"]
[SourceQuality "1"]
[TimeControl "40/5400+30:1800+30"]

1. d4 {[%emt 0:00:00]} Nf6 {[%emt 0:00:00]} 2. Nf3 {[%emt 0:00:00]} e6 {[%emt 0:00:00]} 3. c4 {[%emt 0:00:01]} Bb4+ {[%emt 0:00:00]} 4. Nc3 {[%emt 0:00:06]} b6 {[%emt 0:00:13]} 5. g3 {[%emt 0:00:01]} Bb7 {[%emt 0:00:19]} 6. Bg2 {[%emt 0:00:05]} O-O {[%emt 0:01:30]} 7. O-O {[%emt 0:00:17]} Bxc3 {[%emt 0:00:44]} 8. bxc3 {[%emt 0:00:02]} d6 {[%emt 0:00:26]} 9. Bf4 {[%emt 0:03:01]} Nbd7 {[%emt 0:00:58]} 10. Qd2 {[%emt 0:02:56]} Qc8 {[%emt 0:03:30]} 11. a4 {[%emt 0:00:58]} a5 {[%emt 0:01:52]} 12. Rfe1 {[%emt 0:01:05]} Re8 {[%emt 0:09:02]} 13. Qc2 {[%emt 0:04:53]} e5 14. Bg5 {[%emt 0:00:14]} Be4 {[%emt 0:22:48]} 15. Qb3 {[%emt 0:04:04]} h6 {[%emt 0:01:10]} 16. Bc1 {[%emt 0:12:29]} Nf8 {[%emt 0:10:43]} 17. Ba3 {[%emt 0:03:50]} Ng6 {[%emt 0:03:25]} 18. dxe5 {[%emt 0:06:06]} dxe5 {[%emt 0:02:09]} 19. c5 {[%emt 0:03:01]} Rb8 {[%emt 0:02:59]} 20. cxb6 {[%emt 0:01:40]} Rxb6 {[%emt 0:00:08]} 21. Qa2 {[%emt 0:00:39]} Qb7 {[%emt 0:01:11]} 22. Red1 {[%emt 0:04:32]} Qc6 {[%emt 0:02:47]} 23. Qd2 {[%emt 0:06:01]} Rb3 {[%emt 0:04:33]} 24. c4 {[%emt 0:04:55]} Ra8 {[%emt 0:07:39]} 25. Qa2 {[%emt 0:10:14]} Rbb8 {[%emt 0:10:34]} 26. Bb2 {[%emt 0:05:41]} Re8 {[%emt 0:05:36]} 27. Rac1 {[%emt 0:01:55]} Nd7 {[%emt 0:01:34]} 28. c5 {[%emt 0:01:18]} Nf6 {[%emt 0:00:56]} 29. Ne1 {[%emt 0:08:28]} Bxg2 {[%emt 0:01:22]} 30. Nxg2 {[%emt 0:00:16]} Rab8 {[%emt 0:00:07]} 31. Ba1 {[%emt 0:06:58]} Rb4 {[%emt 0:01:32]} 32. Rc4 {[%emt 0:00:11]} Qe6 {[%emt 0:00:10]} 33. Ne3 {[%emt 0:01:59]} Ng4 {[%emt 0:03:13]} 34. Nd5 {[%emt 0:01:23]} Rd8 {[%emt 0:00:22]} 35. Rxb4 {[%emt 0:01:02]} axb4 {[%emt 0:00:02]} 36. c6 {[%emt 0:03:46]} Kh8 {[%emt 0:00:51]} 37. Qc4 {[%emt 0:01:14]} Ne7 {[%emt 0:01:39]} 38. e4 {[%emt 0:00:30]} f5 {[%emt 0:01:26]} 39. Qxb4 {[%emt 0:02:56]} fxe4 {[%emt 0:01:05]} 40. Nc3 {[%emt 0:00:00]} Rxd1+ {[%emt 0:00:00]} 41. Nxd1 {[%emt 0:00:19]} Qd5 {[%emt 0:05:34]} 42. Nc3 {[%emt 0:02:38]} Qd2 {[%emt 0:01:09]} 43. Qb2 {[%emt 0:04:21]} Qe1+ {[%emt 0:02:07]} 44. Kg2 {[%emt 0:00:00]} e3 {[%emt 0:03:34]} 45. fxe3 {[%emt 0:02:19]} Nxe3+ {[%emt 0:02:06]} 46. Kf3 {[%emt 0:00:10]} N7f5 {[%emt 0:13:55]} 47. Qb8+ {[%emt 0:04:41]} Kh7 {[%emt 0:00:02]} 48. Qb1 {[%emt 0:00:09]} Qd2 {[%emt 0:00:04]} 49. Ne2 {[%emt 0:00:09]} Qd5+ {[%emt 0:01:18]} 50. Qe4 {[%emt 0:00:17]} Qd1 {[%emt 0:00:21]} 51. Qxe5 {[%emt 0:05:30]} Qh1+ {[%emt 0:00:10]} 52. Kf4 {[%emt 0:00:30]} g5# {[%emt 0:00:06]} 0-1

[Event "IIFL Wealth 4th Mumbai GM"]
[Site "Mumbai"]
[Date "2019.01.05"]
[Round "7"]
[White "Trisha Kanyamarala"]
[Black "Varga, Klara"]
[Result "1-0"]
[ECO "D56"]
[WhiteElo "1942"]
[BlackElo "2242"]
[Annotator "NA"]
[PlyCount "67"]
[EventDate "2018.12.30"]
[EventType "swiss"]
[EventCountry "IND"]
[SourceTitle "playchess.com"]
[Source "ChessBase"]
[SourceQuality "1"]
[TimeControl "40/5400+30:1800+30"]

1. d4 {[%emt 0:00:00]} e6 {[%emt 0:00:00]} 2. c4 {[%emt 0:00:23]} Nf6 {[%emt 0:00:00]} 3. Nf3 {[%emt 0:00:12]} d5 {[%emt 0:00:00]} 4. Nc3 {[%emt 0:00:18]} Be7 {[%emt 0:00:00]} 5. Bg5 {[%emt 0:00:38]} h6 {[%emt 0:00:00]} 6. Bh4 {[%emt 0:00:17]} O-O {[%emt 0:00:07]} 7. e3 {[%emt 0:00:07]} Ne4 {[%emt 0:00:04]} 8. Bxe7 {[%emt 0:00:23]} Qxe7 {[%emt 0:00:04]} 9. Rc1 {[%emt 0:00:13]} Nxc3 {[%emt 0:00:06]} 10. Rxc3 {[%emt 0:00:08]} dxc4 {[%emt 0:00:03]} 11. Bxc4 {[%emt 0:00:17]} b6 {[%emt 0:00:06]} 12. Be2 {[%emt 0:02:04]} Bb7 {[%emt 0:00:25]} 13. O-O {[%emt 0:00:15]} Qd6 {[%emt 0:11:56]} 14. Qc2 {[%emt 0:03:25]} Nd7 {[%emt 0:00:35]} 15. Rd1 {[%emt 0:05:52]} Rac8 {[%emt 0:03:33]} 16. Ne1 {[%emt 0:08:15]} Nf6 {[%emt 0:07:35]} 17. Rc1 {[%emt 0:09:22]} Nd5 {[%emt 0:00:42]} 18. Rc4 {[%emt 0:00:33]} e5 {[%emt 0:02:28]} 19. e4 {[%emt 0:08:32]} Nf4 {[%emt 0:00:32]} 20. Bg4 {[%emt 0:02:46]} exd4 {[%emt 0:09:50]} 21. Bxc8 {[%emt 0:01:21]} Bxc8 {[%emt 0:00:18]} 22. Rc6 {[%emt 0:10:02]} Qd8 {[%emt 0:04:31]} 23. Qd2 {[%emt 0:11:06]} Qg5 {[%emt 0:00:53]} 24. Rd1 {[%emt 0:07:22]} Bb7 {[%emt 0:02:36]} 25. Rxc7 {[%emt 0:03:22]} Bxe4 {[%emt 0:00:07]} 26. f3 {[%emt 0:01:56]} Bd5 {[%emt 0:03:15]} 27. g3 {[%emt 0:02:43]} Nh3+ {[%emt 0:00:19]} 28. Kg2 {[%emt 0:00:33]} Qf5 {[%emt 0:03:50]} 29. Qxd4 {[%emt 0:04:33]} Rd8 {[%emt 0:01:03]} 30. Qd3 {[%emt 0:00:54]} Qg5 {[%emt 0:01:03]} 31. Rc4 {[%emt 0:02:39]} Qe5 {[%emt 0:04:31]} 32. Rd4 {[%emt 0:02:29]} Ng5 {[%emt 0:00:08]} 33. h4 {[%emt 0:02:39]} Nh3 {[%emt 0:08:49]} 34. Rxd5 {[%emt 0:03:50]} 1-0